[Event "FIDE Candidates Tournament 2022"]
[Site "Madrid"]
[Date "2022.06.19"]
[Round "3.4"]
[White "Firouzja, Alireza"]
[Black "Nakamura, Hikaru"]
[Result "1/2-1/2"]
[ECO "E36"]
[WhiteElo "2804"]
[BlackElo "2760"]
[Annotator "TA"]
[PlyCount "106"]
[EventDate "2022.06.17"]
[EventType "tourn"]
[EventCountry "ESP"]
[SourceTitle "playchess.com"]
[Source "ChessBase"]
[SourceQuality "1"]
[TimeControl "40/7200:20/3600:900+30"]

{[%evp 12,106,25,20,14,16,17,15,10,4,8,4,12,10,24,8,0,8,1,0,0,-12,-11,-8,0,0,0,2,11,14,23,28,21,31,30,18,22,17,17,20,16,16,15,15,21,6,9,0,0,0,33,31,38,23,33,35,58,61,54,75,87,90,81,31,38,38,38,38,38,19,19,26,26,26,26,26,26,26,26,26,26,0,0,-8,-8,-8,-8,-8,-8,-8,-8,-8,-8,-8,-8,-8,-8]} 1. d4 {[%emt 0:00:04]} Nf6 {[%emt 0:00:08]} 2. c4 {[%emt 0:00:08]} e6 {[%emt 0:00:07]} 3. Nc3 {[%emt 0:00:08]} Bb4 {[%emt 0:00:06]} 4. Qc2 {[%emt 0:00:10]} O-O {[%emt 0:00:16]} 5. a3 {[%emt 0:00:11]} Bxc3+ {[%emt 0:00:06]} 6. Qxc3 {[%emt 0:00:05]} d5 {[%emt 0:00:08]} 7. Bg5 {[%emt 0:00:15]} dxc4 {[%emt 0:00:36] E36: Nimzo-Indian: Classical: 4...d5 5 a3.} 8. Qxc4 {[%emt 0:00:17]} b6 {[%emt 0:00:12]} 9. Rd1 {[%emt 0:00:21]} Ba6 {[%emt 0:01:39]} 10. Qa4 {[%emt 0:00:23]} h6 {[%emt 0:00:35] 10...h6 scores better than 10...Qd7.} 11. Bh4 {[%emt 0:00:15]} Qe7 {[%emt 0:01:08]} 12. Nf3 {[%emt 0:00:27]} Rd8 {[%emt 0:02:20]} 13. Qc2 {[%emt 0:00:17]} c5 {[%emt 0:14:39]} 14. e4 {[%emt 0:00:49]} Bxf1 {[%emt 0:02:56]} 15. Rxf1 {[%emt 0:00:32] Hoping for e5.} g5 {[%emt 0:06:20] [#]} 16. Nxg5 $146 {[%emt 0:00:22]} ({Predecessor:} 16. Bg3 Nc6 17. dxc5 Rxd1+ 18. Kxd1 Rd8+ 19. Kc1 Nd4 20. Nxd4 Rxd4 21. Bd6 Qd7 22. Be5 Nxe4 23. Bxd4 Qxd4 {1-0 (51) Bach,N (2192)-Johnson,B (2061) Chess.com INT 2022}) 16... hxg5 {[%emt 0:00:28]} 17. Bxg5 {[%emt 0:00:07] Black must now prevent e5.} Nc6 {[%emt 0:00:25][%cal Bb8c6,Bc6d4,Bd4c2][%mdl 32]} ({Don't do} 17... Rxd4 18. e5) 18. Qc1 {[%emt 0:01:16] aiming for e5.} Rxd4 {[%emt 0:42:04]} 19. Rxd4 {[%emt 0:01:19]} Nxd4 {[%emt 0:00:24]} 20. Qf4 {[%emt 0:00:44]} Nc2+ {[%emt 0:15:22]} 21. Kd1 {[%emt 0:01:13]} Qd7+ {[%emt 0:00:05]} 22. Kxc2 {[%emt 0:00:36]} Qa4+ {[%emt 0:00:03]} (22... Qb5 $2 23. Bxf6 $1 Qxf1 24. Qh4 Qc4+ 25. Kd2 Rd8+ 26. Bxd8 $18) 23. Kb1 {[%emt 0:00:29]} Qxe4+ {[%emt 0:01:08]} 24. Qxe4 {[%emt 0:00:17]} Nxe4 $11 {[%emt 0:00:02][%mdl 4096] Endgame KRB-KRN} 25. Bf4 {[%emt 0:00:13]} Nf6 {[%emt 0:00:54]} 26. h4 {[%emt 0:07:36]} Nd5 {[%emt 0:00:50]} 27. Bd2 {[%emt 0:02:52]} f5 {[%emt 0:00:28]} 28. g3 {[%emt 0:02:37]} Kf7 {[%emt 0:01:03]} 29. f3 {[%emt 0:06:45]} Rh8 {[%emt 0:01:25]} 30. Bg5 {[%emt 0:04:00]} c4 {[%emt 0:01:56]} 31. g4 {[%emt 0:10:52]} b5 {[%emt 0:01:44]} 32. Rd1 {[%emt 0:07:20]} fxg4 {[%emt 0:05:43]} 33. fxg4 {[%emt 0:00:15]} a5 {[%emt 0:00:02]} 34. h5 {[%emt 0:05:12]} Rg8 {[%emt 0:01:38]} 35. Rf1+ {[%emt 0:00:15]} Ke8 {[%emt 0:00:03] [#]} 36. h6 $1 {[%emt 0:00:11][%cal Ob1c2]} Rf8 {[%emt 0:00:04]} (36... Rxg5 $2 37. h7 Rxg4 38. h8=Q+ $18) 37. Rxf8+ {[%emt 0:13:26]} (37. Rh1 $16) 37... Kxf8 $16 {[%emt 0:00:19] KB-KN} 38. Bd8 {[%emt 0:00:32]} a4 {[%emt 0:09:59]} 39. g5 {[%emt 0:00:22][%cal Bg4g5,Bg5g6][%mdl 32]} Kf7 $1 {[%emt 0:00:29]} 40. h7 {[%emt 0:00:00]} Kg7 {[%emt 0:00:00]} 41. g6 {[%emt 0:02:22] Strongly threatening Ba5.} c3 $1 {[%emt 0:00:53]} 42. bxc3 {[%emt 1:01:52]} Nxc3+ {[%emt 0:00:16]} 43. Kc2 {[%emt 0:02:43]} Nd5 {[%emt 0:00:06]} 44. Bg5 {[%emt 0:12:57] Threatens to win with Bc1.} e5 {[%emt 0:00:22]} 45. Kd2 {[%emt 0:01:31]} Kh8 $1 {[%emt 0:00:08]} 46. Ke1 {[%emt 0:08:37] White wants to mate with Kf2.} b4 {[%emt 0:00:39] The position is equal.} 47. axb4 {[%emt 0:01:28] White threatens b5 and mate.} a3 {[%emt 0:00:04]} 48. Bc1 {[%emt 0:00:09]} Nxb4 {[%emt 0:00:04] ( -> ...a2)} (48... a2 $2 49. Bb2 Kg7 50. Bxe5+ Kxg6 51. h8=Q $18) 49. Kd2 {[%emt 0:01:25]} Nd5 $1 {[%emt 0:00:29]} (49... a2 50. Bb2 Nc6 51. Kd3 Nb4+ 52. Ke4 Nc6 53. Kf5 Kg7 54. Ke6 Kxg6 55. h8=Q) 50. Bxa3 {[%emt 0:00:07] Intending Bb2 and mate.} Nf4 {[%emt 0:00:06]} 51. Bb2 {[%emt 0:00:03][%cal Rb2e5]} (51. g7+ $5 Kxg7 52. Ke3 $11) 51... Nxg6 {[%emt 0:00:04]} 52. Bxe5+ {[%emt 0:00:05]} Nxe5 {[%emt 0:00:03]} 53. Kc3 {[%emt 0:00:07]} Kxh7 {[%emt 0:00:05] Weighted Error Value: White=0.04 (flawless) /Black=0.02 (flawless)} 1/2-1/2

[Event "FIDE Candidates Tournament 2022"]
[Site "Madrid"]
[Date "2022.06.22"]
[Round "5.3"]
[White "Firouzja, Alireza"]
[Black "Duda, Jan-Krzysztof"]
[Result "1/2-1/2"]
[ECO "C42"]
[WhiteElo "2804"]
[BlackElo "2750"]
[Annotator "TA"]
[PlyCount "72"]
[EventDate "2022.06.17"]
[EventType "tourn"]
[EventCountry "ESP"]
[SourceTitle "playchess.com"]
[Source "ChessBase"]
[SourceQuality "1"]
[TimeControl "40/7200:20/3600:900+30"]

{[%evp 15,72,23,29,11,9,16,11,0,0,3,7,-6,0,0,19,10,23,0,0,-1,0,0,29,25,40,30,56,43,57,49,50,46,43,46,46,2,7,0,0,0,0,0,0,0,0,0,0,0,0,0,0,0,0,0,0,0,0,0,0]} 1. e4 {[%emt 0:00:03]} e5 {[%emt 0:00:04]} 2. Nf3 {[%emt 0:00:10]} Nf6 {[%emt 0:00:05]} 3. Nxe5 {[%emt 0:00:32]} d6 {[%emt 0:00:05]} 4. Nf3 {[%emt 0:00:10]} Nxe4 {[%emt 0:00:06]} 5. d4 {[%emt 0:00:30]} d5 {[%emt 0:00:07]} 6. Bd3 {[%emt 0:00:18]} Bf5 {[%emt 0:00:08]} 7. O-O {[%emt 0:00:58]} Be7 {[%emt 0:00:06]} 8. Re1 {[%emt 0:07:23]} O-O {[%emt 0:00:26]} 9. Nbd2 $1 {[%emt 0:02:21][%cal Rd2e4,Bb1d2,Bd2f1,Bf1g3][%mdl 4] is currently scoring better than 9.c4. C42: Petroff Defence: 3 Nxe5 and unusual White 3rd moves.} Nd6 $1 {[%emt 0:00:07]} 10. Nf1 {[%emt 0:04:06]} c6 {[%emt 0:00:17]} 11. Ng3 {[%emt 0:07:01]} Bxd3 {[%emt 0:00:35]} 12. Qxd3 {[%emt 0:00:06]} Na6 {[%emt 0:00:09]} 13. Bd2 {[%emt 0:08:44]} Nc7 {[%emt 0:04:07]} 14. b3 {[%emt 0:05:06]} Re8 {[%emt 0:01:11]} 15. c4 {[%emt 0:05:59]} Bf6 {[%emt 0:03:16] [#]} 16. Rad1 $146 {[%emt 0:13:23]} ({Predecessor:} 16. Ba5 b6 17. Bc3 dxc4 18. bxc4 b5 19. Rxe8+ Ndxe8 20. cxb5 Nxb5 21. Rc1 Qd5 22. a4 Nxc3 23. Qxc3 {0-1 (45) Idani,P (2614)-Duda,J (2738) Krasnaya Polyana 2021}) 16... Rxe1+ {[%emt 0:11:58]} 17. Rxe1 {[%emt 0:00:50]} dxc4 {[%emt 0:00:08]} 18. bxc4 {[%emt 0:00:05]} b5 {[%emt 0:00:05]} 19. cxb5 {[%emt 0:03:52]} cxb5 {[%emt 0:00:40]} 20. Ba5 {[%emt 0:04:02] Ne4 is the strong threat.} Nc4 {[%emt 0:03:33]} 21. Bxc7 {[%emt 0:00:45]} Qxc7 {[%emt 0:00:05]} 22. Ne4 {[%emt 0:10:01]} Qd8 {[%emt 0:07:43]} 23. a4 {[%emt 0:03:57]} a6 {[%emt 0:00:42]} 24. axb5 {[%emt 0:09:30]} axb5 {[%emt 0:00:24]} 25. Nc3 {[%emt 0:01:28]} Qd7 {[%emt 0:02:32] The position is equal.} ({Don't take} 25... Ra3 {[#]} 26. Qe2 $1 g6 27. Nxb5 $14) 26. Rb1 {[%emt 0:01:25]} (26. Qe4 {is interesting.} Rf8 27. Nd5 Bd8 28. Ne5) 26... Nd6 {[%emt 0:01:50]} 27. Nxb5 {[%emt 0:09:17]} Nxb5 {[%emt 0:00:36]} 28. Rxb5 {[%emt 0:00:04]} Bxd4 $1 {[%emt 0:01:39]} 29. Nxd4 {[%emt 0:02:09]} Ra1+ {[%emt 0:00:07]} 30. Rb1 {[%emt 0:00:05]} Qxd4 {[%emt 0:00:05]} 31. Qf1 {[%emt 0:00:30]} Rxb1 {[%emt 0:00:07]} 32. Qxb1 {[%emt 0:00:05] [#] White wants to mate with Qb8+.} g6 {[%emt 0:00:05]} 33. g3 {[%emt 0:00:07]} Qe5 {[%emt 0:00:06]} 34. Qc1 {[%emt 0:00:04]} Qd4 {[%emt 0:00:04]} 35. Qb1 {[%emt 0:00:05]} Qe5 {[%emt 0:00:03]} 36. Qc1 {[%emt 0:00:06]} Qd4 {[%emt 0:00:04] Weighted Error Value: White=0.06 (flawless) /Black=0.04 (flawless)} 1/2-1/2

[Event "FIDE Candidates Tournament 2022"]
[Site "Madrid"]
[Date "2022.06.23"]
[Round "6.2"]
[White "Firouzja, Alireza"]
[Black "Caruana, Fabiano"]
[Result "0-1"]
[ECO "E06"]
[WhiteElo "2804"]
[BlackElo "2786"]
[Annotator "TA"]
[PlyCount "83"]
[EventDate "2022.06.17"]
[EventType "tourn"]
[EventCountry "ESP"]
[SourceTitle "playchess.com"]
[Source "ChessBase"]
[SourceQuality "1"]
[TimeControl "40/7200:20/3600:900+30"]

{[%evp 9,83,23,12,-12,-7,3,12,11,0,0,14,12,14,3,12,-5,0,-10,5,0,0,-25,-27,-20,-3,-5,-6,-8,-7,-23,-7,-89,-81,-88,-83,-139,-104,-118,-106,-122,-123,-128,-135,-114,-91,-150,-174,-181,-160,-173,-202,-171,-198,-186,-193,-252,-262,-324,-332,-339,-282,-302,-289,-287,-247,-477,-492,-435,-358,-511,-509,-1014,-1014,-950,-947,-4698]} 1. d4 {[%emt 0:00:03]} Nf6 {[%emt 0:00:05]} 2. c4 {[%emt 0:00:06]} e6 {[%emt 0:00:03]} 3. g3 {[%emt 0:00:09]} d5 {[%emt 0:00:14]} 4. Bg2 {[%emt 0:00:08]} Be7 {[%emt 0:00:19]} 5. Nf3 {[%emt 0:00:17]} O-O {[%emt 0:00:07]} 6. Qd3 {[%emt 0:00:58] E06: Closed Catalan: Early deviations.} c5 {[%emt 0:08:50]} 7. O-O {[%emt 0:00:40]} cxd4 {[%emt 0:10:38]} 8. Nxd4 {[%emt 0:00:49] The position is equal.} Nc6 {[%emt 0:04:57]} 9. cxd5 {[%emt 0:12:11] [#]} Nxd4 $146 {[%emt 0:08:24]} ({Predecessor:} 9... exd5 10. Nc3 h6 11. Rd1 Re8 12. a3 a6 13. Be3 Be6 14. Rac1 Ne5 15. Qc2 Rc8 {1-0 (28) Wagner,D (2584)-Gokerkan,C (2445) Terme Catez 2022}) 10. Qxd4 {[%emt 0:00:10]} Nxd5 {[%emt 0:00:04]} 11. Rd1 {[%emt 0:06:21]} Bf6 {[%emt 0:03:42]} 12. Qg4 {[%emt 0:04:56]} Bd7 {[%emt 0:07:06]} 13. Nd2 {[%emt 0:39:02]} Qe7 {[%emt 0:02:46]} 14. Nf3 {[%emt 0:09:30]} Rac8 {[%emt 0:03:23]} 15. e4 {[%emt 0:06:23] [#] Threatens to win with e5.} e5 $1 {[%emt 0:01:59]} 16. Qh5 {[%emt 0:00:06]} Nb4 {[%emt 0:05:27]} 17. Bg5 {[%emt 0:20:15]} Bxg5 {[%emt 0:01:47]} 18. Nxg5 {[%emt 0:00:08][%csl Gg5][%cal Rh5h7]} h6 {[%emt 0:00:08]} 19. Nf3 {[%emt 0:00:09]} Nc6 {[%emt 0:01:50]} 20. Rxd7 {[%emt 0:06:06]} Qxd7 $17 {[%emt 0:00:10]} 21. Bh3 {[%emt 0:00:04]} f5 $1 {[%emt 0:09:49]} 22. exf5 {[%emt 0:00:06]} ({Better is} 22. Bxf5 Qe8 23. Qg4) 22... Rce8 {[%emt 0:05:18]} 23. Nh4 {[%emt 0:01:24]} e4 $1 {[%emt 0:04:05][%cal Be5e4,Be4e3][%mdl 32]} 24. Rd1 {[%emt 0:00:04]} Qf7 {[%emt 0:00:36]} 25. Qe2 {[%emt 0:00:09]} Qxa2 {[%emt 0:08:19]} 26. Ng6 {[%emt 0:00:22]} Rf7 {[%emt 0:00:21]} 27. Nf4 {[%emt 0:00:20]} (27. Qc2 $142) 27... Qb3 {[%emt 0:03:09]} 28. Bg4 {[%emt 0:00:16]} e3 {[%emt 0:03:16] aiming for ...exf2+.} 29. Kg2 {[%emt 0:00:09]} Rd8 $1 {[%emt 0:01:32]} 30. Rxd8+ {[%emt 0:00:52]} Nxd8 {[%emt 0:00:07][%cal Bc6d8,Bd8f7,Bf7g5,Bg5f3][%mdl 32]} 31. fxe3 {[%emt 0:00:12] [#]} Rc7 $1 {[%emt 0:01:34] And now ...Rc2 would win.} 32. Kh3 {[%emt 0:00:19] [#]} (32. Qd1 {was necessary.} Qxb2+ 33. Kh3) 32... Nf7 $1 $19 {[%emt 0:00:54]} 33. Bf3 {[%emt 0:04:30]} Rc2 {[%emt 0:08:13]} 34. Qd1 {[%emt 0:00:11]} Ng5+ {[%emt 0:00:15]} ({Stronger than} 34... Rxb2 35. Qd7 Qb5 36. Qe6 $11) 35. Kg4 {[%emt 0:00:06] Strongly threatening Bd5+.} Nxf3 {[%emt 0:00:14]} (35... Qxb2 {gets mated.} 36. Qd8+ Kh7 37. Bd5 h5+ 38. Nxh5 Rd2 39. Qg8+ Kh6 40. Qh8+ Nh7 41. Bg8) 36. Qd8+ {[%emt 0:00:20]} Kh7 {[%emt 0:00:07] ( -> ...Ne5+)} 37. Kxf3 {[%emt 0:00:10]} (37. Ne6 Qc4+ 38. Kxf3 Qe2+ 39. Ke4 Rc4+ 40. Kd5 Qd3+ 41. Nd4) 37... Qxb2 {[%emt 0:00:58]} 38. Qe8 {[%emt 0:00:28]} Qf6 {[%emt 0:02:03] Hoping for ...Qc6+.} 39. e4 {[%emt 0:00:07]} (39. Qe4 $142 Rxh2 40. Nd5) 39... Rxh2 {[%emt 0:02:12] ...a5 is the strong threat. Black is clearly winning.} 40. Qd7 {[%emt 0:00:00]} (40. Nd5 $142 Qa6 41. Kf4) 40... Qc3+ {[%emt 0:00:00]} 41. Kg4 {[%emt 0:01:36]} Qd2 {[%emt 0:04:07]} 42. Qa4 {[%emt 0:01:17] Weighted Error Value: White=0.45/Black=0.06 (flawless)} 0-1

[Event "FIDE Candidates Tournament 2022"]
[Site "Madrid"]
[Date "2022.06.27"]
[Round "9.1"]
[White "Firouzja, Alireza"]
[Black "Rapport, Richard"]
[Result "1-0"]
[ECO "C65"]
[WhiteElo "2804"]
[BlackElo "2776"]
[Annotator "TA"]
[PlyCount "81"]
[EventDate "2022.06.17"]
[EventType "tourn"]
[EventCountry "ESP"]
[SourceTitle "playchess.com"]
[Source "ChessBase"]
[SourceQuality "1"]
[TimeControl "40/7200:20/3600:900+30"]

{[%evp 11,81,4,13,0,12,0,0,0,10,-2,32,26,35,45,48,59,64,25,30,27,25,29,25,0,0,0,0,0,0,0,0,0,0,0,0,0,0,-33,-28,-71,-57,-49,47,38,42,59,75,65,76,75,106,64,182,181,235,196,427,433,420,406,404,289,331,324,312,329,314,315,340,330,437,441]} 1. e4 {[%emt 0:00:02]} e5 {[%emt 0:01:53]} 2. Nf3 {[%emt 0:00:26]} Nc6 {[%emt 0:00:13]} 3. Bb5 {[%emt 0:01:08]} Nf6 {[%emt 0:01:17]} 4. d3 {[%emt 0:00:31]} Bc5 {[%emt 0:00:10]} 5. O-O {[%emt 0:07:05]} Nd4 {[%emt 0:01:09]} 6. Nxd4 {[%emt 0:00:15]} Bxd4 {[%emt 0:00:09]} 7. c3 {[%emt 0:00:12] C65: Ruy Lopez: Berlin Defence (3...Nf6), unusual lines and 4 0-0 Bc5.} Bb6 {[%emt 0:00:12]} 8. Na3 {[%emt 0:01:27] Recently 8.Ba4 got a lot of attention.} c6 {[%emt 0:09:50]} 9. Ba4 {[%emt 0:00:26] The position is equal.} d6 {[%emt 0:01:04]} 10. Bb3 {[%emt 0:08:28]} Qe7 {[%emt 0:09:18]} 11. Nc4 {[%emt 0:02:10] [#]} Bg4 $146 {[%emt 0:15:04]} ({Predecessor:} 11... Bc7 12. f4 b5 13. fxe5 dxe5 14. Ne3 O-O 15. Nf5 Bxf5 16. Rxf5 h6 17. Qf3 Nh7 {0-1 (34) Karjakin,S (2754)-Vidit,S (2721) Moscow 2019}) 12. Qe1 {[%emt 0:06:03]} Bc5 {[%emt 0:06:17]} 13. Kh1 {[%emt 0:02:03]} a5 {[%emt 0:09:51][%cal Ba7a5,Ba5a4][%mdl 32]} 14. f4 {[%emt 0:09:25]} a4 $1 {[%emt 0:01:11]} 15. Bc2 {[%emt 0:04:12]} b5 {[%emt 0:04:43]} 16. fxe5 {[%emt 0:07:54]} dxe5 {[%emt 0:00:35] [#]} 17. Nxe5 {[%emt 0:00:35]} Qxe5 {[%emt 0:00:14]} 18. d4 {[%emt 0:00:10]} Bxd4 {[%emt 0:03:57]} 19. cxd4 {[%emt 0:00:56]} Qxd4 {[%emt 0:00:10]} 20. Be3 {[%emt 0:06:16]} Qxb2 {[%emt 0:02:58]} 21. Qf2 {[%emt 0:02:44] aiming for Bd4.} Be6 {[%emt 0:01:44]} 22. Bd4 {[%emt 0:12:06]} Qb4 {[%emt 0:00:38] Strongly threatening ...Ng4.} 23. Bc5 {[%emt 0:01:25]} Qc3 {[%emt 0:00:48]} 24. Rac1 {[%emt 0:11:37]} Rd8 {[%emt 0:14:25] Inhibits Bd6.} (24... Bxa2 $2 25. Bb1 Qe5 26. Bxa2 $18) 25. Bb1 {[%emt 0:13:36]} Qe5 {[%emt 0:00:50]} 26. Qh4 {[%emt 0:01:06]} Bc4 {[%emt 0:07:20]} (26... Rd7 $15) 27. Rf5 $14 {[%emt 0:00:38][%mdl 1024] White has compensation.} Qb2 {[%emt 0:00:07][%csl LRa2,LRc1]} 28. Rg1 {[%emt 0:01:44] Threatens to win with e5.} (28. Re1 $5 {[%cal Re4e5]} Be6 29. Qg3 $14) 28... Be6 {[%emt 0:02:51]} (28... Bxa2 $2 29. Bxa2 Qc3 30. Qf4 Qxc5 31. Rxc5 $18) 29. Qg3 $1 {[%emt 0:03:52] Rf2 is the strong threat.} Nd7 {[%emt 0:03:19] [#]} (29... Bxf5 $2 30. exf5 Qd2 31. Re1+ Qxe1+ 32. Qxe1+ Kd7 33. Qg3 $18) 30. Bd6 $1 {[%emt 0:00:09][%cal Oe4e5]} Qd4 {[%emt 0:01:56]} (30... Bxf5 $2 31. exf5 Ra8 32. Rd1 $18) (30... g6 31. Rff1) 31. Rff1 {[%emt 0:04:54]} h5 {[%emt 0:01:52]} ({Black should try} 31... h6 $1 $14) 32. e5 $1 $40 {[%emt 0:00:37][%mdl 128] White wants a kill.} Qg4 {[%emt 0:00:29] [#]} (32... Nf8 {keeps fighting.} 33. Qxg7 Rxd6) 33. Qe3 $1 {[%emt 0:00:19]} h4 $2 {[%emt 0:03:54] [#]} (33... Nf6) 34. h3 $1 {[%emt 0:00:05]} Qh5 {[%emt 0:00:41]} 35. Be4 {[%emt 0:00:12][%cal Bb1e4,Be4c6,Bc6b5,Bb5e2][%mdl 32]} Qh6 {[%emt 0:00:57]} 36. Qf3 {[%emt 0:01:37]} (36. Qxh6 Rxh6 37. Bxc6 Bc4 $16) 36... f6 {[%emt 0:01:40]} 37. Bxc6 {[%emt 0:00:51] Hoping for exf6.} Kf7 {[%emt 0:03:05]} 38. Bxb5 {[%emt 0:00:05]} Qh5 {[%emt 0:01:16]} 39. Qe4 {[%emt 0:00:57]} ({Not} 39. Bxa4 Qxf3 40. Rxf3 Nb6 $14) 39... Nxe5 {[%emt 0:01:18]} 40. Be2 {[%emt 0:00:00][%mdl 64] Zwischenzug. This bishop pair is nice.} ({Don't play} 40. Bxe5 Rd5 $18) 40... Qg5 {[%emt 0:00:00]} 41. Bxe5 {[%emt 0:06:48] Weighted Error Value: White=0.07 (flawless) /Black=0.27 (precise)} 1-0

[Event "FIDE Candidates Tournament 2022"]
[Site "Madrid"]
[Date "2022.06.30"]
[Round "11.2"]
[White "Firouzja, Alireza"]
[Black "Nepomniachtchi, Ian"]
[Result "0-1"]
[ECO "C42"]
[WhiteElo "2804"]
[BlackElo "2773"]
[Annotator "TA"]
[PlyCount "70"]
[EventDate "2022.06.17"]
[EventType "tourn"]
[EventCountry "ESP"]
[SourceTitle "playchess.com"]
[Source "ChessBase"]
[SourceQuality "1"]
[TimeControl "40/7200:20/3600:900+30"]

{[%evp 9,70,8,13,0,0,0,0,10,11,0,8,8,8,0,0,0,-1,0,0,0,0,0,22,-19,-34,-88,-85,-108,-95,-132,-115,-170,-169,-169,-157,-167,-171,-183,-126,-129,-132,-109,-122,-118,-117,-120,-118,-91,-72,-78,-77,-275,-279,-281,-290,-278,-284,-322,-189,-447,-437,-604,-596]} 1. e4 {[%emt 0:00:02]} e5 {[%emt 0:00:06]} 2. Nf3 {[%emt 0:00:03]} Nf6 {[%emt 0:00:05]} 3. Nxe5 {[%emt 0:00:04]} d6 {[%emt 0:00:05]} 4. Nf3 {[%emt 0:00:04]} Nxe4 {[%emt 0:00:06]} 5. c4 {[%emt 0:00:03]} Nc6 {[%emt 0:00:32]} 6. d3 {[%emt 0:00:05][%cal Bd2d3,Bd3d4,Bd4d5][%mdl 32] C42: Petroff Defence: 3 Nxe5 and unusual White 3rd moves.} Nf6 {[%emt 0:00:11]} 7. d4 {[%emt 0:00:05]} Be7 {[%emt 0:01:24]} 8. d5 {[%emt 0:01:14] The position is equal.} Ne5 {[%emt 0:00:49] [#]} 9. Nd4 $146 {[%emt 0:00:05]} ({Predecessor:} 9. Be2 Nxf3+ 10. Bxf3 h5 11. h3 Bf5 12. Nc3 Qd7 13. Be3 a6 14. a4 c5 15. dxc6 bxc6 {1-0 (38) Kosteniuk,A (2472)-Tan,Z (2511) Krasnaya Polyana 2021}) 9... O-O {[%emt 0:02:54]} 10. Nc3 {[%emt 0:00:34]} Bg4 {[%emt 0:04:30]} 11. f3 {[%emt 0:00:14]} Bd7 {[%emt 0:01:41]} 12. Be2 {[%emt 0:00:09]} c6 {[%emt 0:00:50]} 13. O-O {[%emt 0:00:13]} cxd5 {[%emt 0:08:53]} 14. cxd5 {[%emt 0:01:31]} Qb6 {[%emt 0:07:33]} 15. Kh1 {[%emt 0:07:36]} Rac8 {[%emt 0:01:42]} 16. g4 {[%emt 0:23:16]} (16. f4 $5 {[%cal Rf4e5]} Ng6 17. a4 $11) 16... h6 {[%emt 0:06:01]} 17. h4 {[%emt 0:35:40]} ({Better is} 17. a4 $15) 17... Rfe8 $17 {[%emt 0:01:40]} 18. g5 {[%emt 0:04:32]} hxg5 {[%emt 0:02:34]} 19. hxg5 {[%emt 0:00:16]} Nh5 {[%emt 0:00:10] Black is more active.} 20. Kg2 {[%emt 0:07:55] Against Ng3} (20. Ne4 $17) 20... Ng6 $19 {[%emt 0:11:01]} 21. f4 {[%emt 0:02:36] [#]} Nhxf4+ {[%emt 0:00:11][%mdl 512]} 22. Bxf4 {[%emt 0:06:12]} Qxb2 {[%emt 0:00:33]} 23. Ne4 {[%emt 0:04:45]} Rc4 {[%emt 0:09:51]} (23... Bd8 $1 $19 24. Qd2 (24. Nxd6 $2 Rxe2+ 25. Qxe2 Qxd4 $19) 24... Qxd2 25. Nxd2 Nxf4+ 26. Rxf4 Bxg5) 24. Be3 $17 {[%emt 0:00:30] [#]} Bxg5 $1 {[%emt 0:01:36][%mdl 512]} 25. Rb1 {[%emt 0:02:28] [#]} Qxa2 {[%emt 0:01:26]} 26. Ra1 {[%emt 0:00:50]} ({Don't go for} 26. Nxg5 $2 Rxe3 27. Rxb7 (27. Kh1 $2 Rxd4 28. Qxd4 Qxe2 $19) 27... Rxd4 $1 {[%mdl 512]} 28. Rb8+ (28. Qxd4 $2 Rxe2+ 29. Rf2 Rxf2+ 30. Qxf2 Qxd5+ 31. Kf1 Bb5+ 32. Rxb5 Qxb5+ $19) 28... Nf8 29. Qxd4 Rxe2+ 30. Rf2 Rxf2+ 31. Qxf2 Qxd5+ 32. Nf3 Bc6 $19) 26... Rxd4 $1 {[%emt 0:03:11] The board is on fire.} 27. Rxa2 {[%emt 0:02:04]} Rxd1 {[%emt 0:00:46]} 28. Bxd1 {[%emt 0:00:33]} Bxe3 {[%emt 0:01:26]} 29. Nxd6 {[%emt 0:00:06] [#]} Re7 {[%emt 0:02:41] White must now prevent ...Bf4.} 30. Bb3 $2 {[%emt 0:04:54] This move loses the game for White.} ({Wrong is} 30. Nf5 $2 Bxf5 31. Bc2 Bd7 32. Bxg6 fxg6 $19) (30. Re2 $17 {is a better defense.}) 30... Bc5 $19 {[%emt 0:05:09]} 31. Nxb7 {[%emt 0:01:27]} Bb6 {[%emt 0:00:41] aiming for ...Re3. A strong pair of Bishops.} 32. Bc4 {[%emt 0:06:23]} Re3 {[%emt 0:01:06] Threatens to win with ...Bh3+.} 33. Kh1 {[%emt 0:00:46]} Bh3 {[%emt 0:04:00]} (33... Rc3 $142 34. Ba6 Bg4) 34. Rc1 {[%emt 0:00:40]} (34. Rb1) 34... Bf5 {[%emt 0:01:36] ( -> ...Rh3+)} 35. Bf1 {[%emt 0:00:06] Against Rh3+} Be4+ {[%emt 0:00:22] Weighted Error Value: White=0.41/Black=0.08 (flawless)} 0-1